bitfinex/quotes_BTCUSD_20241011
["timestamp","ask_amount","ask_price","bid_price","bid_amount"]
[1728663583518,0.16122401,62244.0,62242.0,0.0792]
[1728663583784,0.005,62241.0,62240.0,0.001]
[1728663584015,0.19627895,62241.0,62240.0,0.001]
[1728663584224,0.19627895,62241.0,62237.0,0.000819]
[1728663584448,0.005,62239.0,62237.0,0.000819]
[1728663584655,0.16122401,62238.0,62237.0,0.000819]
[1728663584886,0.1762512,62238.0,62237.0,0.000819]
[1728663585830,0.1832512,62238.0,62237.0,0.000819]
[1728663586292,0.2882512,62238.0,62237.0,0.00880343]
[1728663586519,0.2882512,62238.0,62237.0,0.000819]
[1728663587029,0.4489242,62238.0,62237.0,0.000819]
[1728663587250,0.4509242,62238.0,62237.0,0.000819]
[1728663588074,0.47496242,62238.0,62237.0,0.000819]
[1728663588284,0.51119701,62238.0,62237.0,0.000819]
[1728663588494,0.52622125,62238.0,62237.0,0.000819]
[1728663589158,0.51922125,62238.0,62237.0,0.000819]
[1728663589382,0.52622125,62238.0,62237.0,0.000819]
[1728663589581,0.51922125,62238.0,62237.0,0.000819]
[1728663589789,0.66229634,62238.0,62237.0,0.000819]
[1728663590002,0.51722125,62238.0,62237.0,0.000819]
[1728663590212,0.75968486,62238.0,62237.0,0.000819]
[1728663590424,0.68340549,62238.0,62237.0,0.000819]
[1728663590627,0.68140549,62238.0,62237.0,0.000819]
[1728663590832,0.68440549,62238.0,62237.0,0.000819]
[1728663591273,0.56725074,62238.0,62237.0,0.000819]
[1728663591500,0.57225074,62238.0,62237.0,0.000819]
[1728663591731,0.30827774,62238.0,62237.0,0.000819]
[1728663591994,0.30826824,62238.0,62237.0,0.00884881]
[1728663592205,0.31626824,62238.0,62237.0,0.000819]
[1728663592854,0.30526824,62238.0,62237.0,0.000819]
[1728663593285,0.47094124,62238.0,62237.0,0.000819]
[1728663593494,0.46594124,62238.0,62237.0,0.000819]
[1728663593923,0.46593445,62238.0,62237.0,0.000819]
[1728663594377,0.44192125,62238.0,62237.0,0.000819]
[1728663594864,0.46591666,62238.0,62237.0,0.000819]
[1728663595054,0.70124024,62238.0,62237.0,0.000819]
[1728663595476,0.56891666,62238.0,62237.0,0.000819]
[1728663598096,0.52989701,62238.0,62237.0,0.000819]
[1728663598307,0.56889977,62238.0,62237.0,0.000819]
[1728663599186,0.73629977,62238.0,62237.0,0.000819]
[1728663599852,0.74229977,62238.0,62237.0,0.000819]
[1728663600095,0.91766948,62238.0,62237.0,0.000819]
[1728663600305,0.90966948,62238.0,62237.0,0.000819]
[1728663600516,0.75829977,62238.0,62237.0,0.000819]
[1728663601400,0.74429977,62238.0,62237.0,0.000819]
[1728663601617,0.75829977,62238.0,62237.0,0.000819]
[1728663610325,0.51294059,62238.0,62237.0,0.000819]
[1728663610554,0.47389701,62238.0,62237.0,0.000819]
[1728663610768,0.4899591,62238.0,62237.0,0.000819]
[1728663611209,1.11617746,62238.0,62237.0,0.000819]
[1728663611464,0.87571385,62238.0,62237.0,0.000819]
[1728663612143,0.85271385,62238.0,62237.0,0.000819]
[1728663613635,0.81365176,62238.0,62237.0,0.000819]
[1728663613852,0.85277625,62238.0,62237.0,0.000819]
[1728663614938,0.7356215,62238.0,62237.0,0.000819]
[1728663616998,0.45089701,62238.0,62237.0,0.000819]
[1728663617225,0.32937749,62238.0,62237.0,0.000819]
[1728663617502,0.32937749,62238.0,62237.0,0.161495]
[1728663617503,0.22437749,62238.0,62237.0,0.161495]
[1728663617723,0.22437749,62238.0,62237.0,0.252419]
[1728663617941,0.20028304,62238.0,62237.0,0.01138343]
[1728663618166,0.20528304,62238.0,62237.0,0.01138343]
[1728663618392,0.20528304,62238.0,62237.0,0.27783075]
[1728663618393,0.01505903,62238.0,62237.0,0.27783075]
[1728663618611,0.00164,62242.0,62241.0,0.160665]
[1728663618831,0.0166926,62242.0,62241.0,0.28103264]
[1728663619055,0.0166926,62242.0,62241.0,0.28592324]
[1728663620185,0.00164,62242.0,62241.0,0.28592324]
[1728663620635,0.00164,62242.0,62241.0,0.36041881]
[1728663620862,0.00164,62242.0,62241.0,0.38510592]
[1728663621539,0.00164,62242.0,62241.0,0.22444092]
[1728663622006,0.00164,62242.0,62241.0,0.38510592]
[1728663622276,0.00164,62242.0,62241.0,0.38710592]
[1728663622277,0.00264,62242.0,62241.0,0.38710592]
[1728663623859,0.00264,62242.0,62241.0,0.57554335]
[1728663624138,0.00264,62242.0,62241.0,0.60764335]
[1728663624365,0.00164,62242.0,62241.0,0.60564335]
[1728663624800,0.24046361,62253.0,62252.0,0.190537]
[1728663625020,0.24046361,62253.0,62252.0,0.38018679]
[1728663625244,0.24046361,62253.0,62252.0,0.38495997]
[1728663625468,0.00164,62260.0,62259.0,0.160619]
[1728663625682,0.00164,62260.0,62259.0,0.34905643]
[1728663625911,0.00164,62260.0,62259.0,0.19636881]
[1728663626125,0.00164,62260.0,62259.0,0.00793138]
[1728663626566,0.00164,62260.0,62255.0,0.160628]
[1728663626779,0.00164,62260.0,62256.0,0.160624]
[1728663626997,0.00164,62260.0,62257.0,0.00794685]
[1728663627450,0.00164,62260.0,62255.0,0.160627]
[1728663627664,0.00164,62260.0,62258.0,0.00793911]
[1728663627862,0.01364,62260.0,62254.0,0.50969843]
[1728663628167,0.00564,62260.0,62259.0,0.00793138]
[1728663628387,0.00764,62260.0,62254.0,0.18843743]
[1728663628623,0.24046361,62258.0,62243.0,0.4692]
[1728663628845,0.005,62253.0,62243.0,0.4692]
[1728663629081,0.0777,62248.0,62243.0,0.4692]
[1728663630278,0.005,62249.0,62243.0,0.629858]
[1728663630931,0.005,62249.0,62243.0,0.4692]
[1728663631202,0.16122401,62248.0,62243.0,0.4692]
[1728663632787,0.008,62249.0,62243.0,0.4692]
[1728663632788,0.003,62249.0,62248.0,0.160647]
[1728663633043,0.24046361,62256.0,62253.0,0.160634]
[1728663633256,0.16122401,62255.0,62251.0,0.18843743]
[1728663633721,0.16122401,62255.0,62252.0,0.160635]
[1728663633956,0.16122401,62255.0,62251.0,0.18843743]
[1728663634172,0.15672402,62255.0,62254.0,0.34906943]
[1728663634382,0.00164,62260.0,62254.0,0.34906943]
[1728663634383,0.002,62256.0,62254.0,0.34906943]
[1728663634612,0.00164,62260.0,62256.0,0.321254]
[1728663634821,0.00164,62260.0,62259.0,0.34905643]
[1728663635482,0.00164,62260.0,62259.0,0.36706319]
[1728663635696,0.00164,62260.0,62259.0,0.20644419]
[1728663635916,0.00264,62260.0,62259.0,0.01800676]
[1728663636356,0.00264,62260.0,62256.0,0.006]
[1728663636582,0.00264,62260.0,62259.0,0.01800676]
[1728663637041,0.00664,62260.0,62259.0,0.161619]
[1728663637273,0.00164,62260.0,62259.0,0.01800676]
[1728663637488,0.00364,62260.0,62259.0,0.17862576]
[1728663637729,0.00964,62260.0,62256.0,0.51068843]
[1728663637941,0.00164,62260.0,62259.0,0.17862576]
[1728663638169,0.00764,62260.0,62259.0,0.161619]
[1728663638401,0.01664,62260.0,62259.0,0.17962576]
[1728663638637,0.00164,62260.0,62259.0,0.17862576]
[1728663638873,0.00164,62260.0,62259.0,0.01800676]
[1728663639090,0.00264,62260.0,62259.0,0.01800676]
[1728663639342,0.00264,62260.0,62250.0,0.18843743]
[1728663639564,0.00264,62260.0,62232.0,0.1]
[1728663639565,0.1858,62256.0,62246.0,0.24046361]
[1728663639782,0.16122401,62255.0,62246.0,0.40111461]
[1728663640023,0.16122401,62255.0,62244.0,0.321314]
[1728663640024,0.16122401,62255.0,62247.0,0.160649]
[1728663640269,0.16122401,62255.0,62240.0,0.18843743]
[1728663640486,0.16122401,62255.0,62248.0,0.321293]
[1728663640722,0.16122401,62255.0,62249.0,0.160643]
[1728663641150,0.16122401,62255.0,62250.0,0.16064]
[1728663641373,0.16122401,62255.0,62250.0,0.160642]
[1728663642042,0.16122401,62255.0,62249.0,0.160645]
[1728663642762,0.16122401,62255.0,62249.0,0.162645]
[1728663643218,0.16122401,62255.0,62249.0,0.002]
[1728663643406,0.16122401,62255.0,62250.0,0.16064]
[1728663643630,0.16122401,62255.0,62249.0,0.002]
[1728663643857,0.0832,62259.0,62254.0,0.18843743]
[1728663644108,0.00164,62260.0,62249.0,0.24246361]
[1728663644109,0.00164,62260.0,62259.0,0.160619]
[1728663645184,0.00164,62260.0,62259.0,0.16383107]
[1728663645402,0.00164,62260.0,62259.0,0.16883107]
[1728663646064,0.00164,62260.0,62259.0,0.16383107]
[1728663646305,0.00464,62260.0,62259.0,0.16383107]
[1728663647017,0.01064,62260.0,62259.0,0.16383107]
[1728663647248,0.006,62260.0,62259.0,0.16383107]
[1728663647698,0.0814,62265.0,62259.0,0.00321207]
[1728663647927,0.24046361,62264.0,62262.0,0.16061]
[1728663648174,0.001,62260.0,62259.0,0.160619]
[1728663648389,0.001,62260.0,62259.0,0.163831]
[1728663648611,0.0814,62265.0,62259.0,0.1801243]
[1728663648861,0.01501557,62264.0,62259.0,0.1801243]
[1728663649074,0.0824,62265.0,62259.0,0.1801223]
[1728663649329,0.01501603,62264.0,62259.0,0.0195053]
[1728663649559,0.0814,62265.0,62259.0,0.1801213]
[1728663649775,0.0814,62265.0,62259.0,0.1801223]
[1728663650002,0.007,62264.0,62259.0,0.0195053]
[1728663650230,0.00164,62260.0,62259.0,0.1801223]
[1728663651402,0.00164,62260.0,62259.0,0.0162933]
[1728663651612,0.00564,62260.0,62259.0,0.0162933]
[1728663652087,0.00564,62260.0,62259.0,0.1769123]
[1728663652546,0.24046361,62264.0,62259.0,0.0162933]
[1728663652758,0.01501946,62263.0,62259.0,0.1769113]
[1728663652974,0.24046361,62264.0,62259.0,0.0162933]
[1728663653188,0.24046361,62264.0,62259.0,0.1769113]
[1728663653431,0.01502005,62263.0,62259.0,0.0162933]
[1728663653643,0.24046361,62264.0,62259.0,0.1769103]
[1728663653858,0.01502005,62263.0,62259.0,0.0162933]
[1728663654070,0.24446361,62264.0,62259.0,0.1769113]
[1728663654297,0.01501985,62263.0,62259.0,0.1769113]
[1728663654550,0.24446361,62264.0,62259.0,0.0162933]
[1728663654761,0.01501986,62263.0,62259.0,0.0162933]
[1728663654973,0.24446361,62264.0,62259.0,0.0162933]
[1728663655185,0.01501986,62263.0,62259.0,0.0162933]
[1728663655405,0.24446361,62264.0,62259.0,0.0162933]
[1728663655406,0.1754,62261.0,62259.0,0.0162933]
[1728663655627,0.01501986,62260.0,62259.0,0.0162933]
[1728663655895,0.25854387,62260.0,62259.0,0.0162933]
[1728663656123,0.24352401,62260.0,62259.0,0.03380619]
[1728663656338,0.25854518,62260.0,62259.0,0.0162933]
[1728663656995,0.41916118,62260.0,62259.0,0.0162933]
[1728663657211,0.25854518,62260.0,62259.0,0.0162933]
[1728663657421,0.26154518,62260.0,62259.0,0.0162933]
[1728663657644,0.42216118,62260.0,62259.0,0.0162933]
[1728663657886,0.41916118,62260.0,62259.0,0.0162933]
[1728663658131,0.42616118,62260.0,62259.0,0.0172933]
[1728663658726,0.42416118,62260.0,62259.0,0.0172933]
[1728663658928,0.42416118,62260.0,62259.0,0.0182933]
[1728663659317,0.71259861,62260.0,62259.0,0.0182933]
[1728663659745,0.70759861,62260.0,62259.0,0.0172933]
[1728663660164,0.70959861,62260.0,62259.0,0.0172933]
[1728663660371,0.73363798,62260.0,62259.0,0.0172933]
[1728663661437,0.91423798,62260.0,62259.0,0.0172933]
[1728663661647,0.87517744,62260.0,62259.0,0.0172933]
[1728663661855,0.91424725,62260.0,62259.0,0.0172933]
[1728663664418,1.16233124,62250.0,62249.0,0.00082]
[1728663664644,0.92186763,62250.0,62249.0,0.00082]
[1728663665122,0.92486763,62250.0,62249.0,0.00082]
[1728663666464,0.5757882,62250.0,62249.0,0.00082]
[1728663666679,0.4757882,62250.0,62249.0,0.01659615]
[1728663666900,0.02502685,62250.0,62249.0,0.17724115]
[1728663667133,0.01,62250.0,62249.0,0.19487116]
[1728663667581,0.01,62250.0,62249.0,0.03422616]
[1728663669764,0.17122401,62250.0,62249.0,0.03422616]
[1728663669992,0.17622401,62250.0,62249.0,0.03422616]
[1728663670213,0.17122401,62250.0,62249.0,0.03422616]
[1728663670423,0.17622401,62250.0,62249.0,0.03422616]
[1728663671353,0.19122689,62250.0,62249.0,0.03422616]
[1728663671798,0.19122732,62250.0,62249.0,0.03422616]
[1728663672872,0.17622401,62250.0,62249.0,0.03422616]
[1728663673327,0.27112543,62250.0,62249.0,0.03422616]
[1728663673541,0.27112543,62250.0,62249.0,0.01659615]
[1728663673832,0.25612401,62250.0,62249.0,0.01659615]
[1728663674008,0.01,62250.0,62249.0,0.36567858]
[1728663674254,0.24046361,62256.0,62255.0,0.160629]
[1728663674469,0.24046361,62256.0,62254.0,0.16063]
[1728663674676,0.00164,62260.0,62253.0,0.50970243]
[1728663674677,0.00164,62260.0,62257.0,0.160622]
[1728663674892,0.17622433,62259.0,62255.0,0.01757725]
[1728663675154,0.16122401,62259.0,62258.0,0.01755355]
[1728663675366,0.16122401,62259.0,62255.0,0.160629]
[1728663675579,0.16122401,62259.0,62258.0,0.01755355]
[1728663675785,0.16122401,62259.0,62253.0,0.18843743]
[1728663675992,0.16122401,62259.0,62258.0,0.01755355]
[1728663676199,0.16122401,62259.0,62255.0,0.481886]
[1728663676469,0.16122401,62259.0,62256.0,0.160625]
[1728663676696,0.16122401,62259.0,62257.0,0.160623]
[1728663676966,0.16122401,62259.0,62256.0,0.01756935]
[1728663677184,0.0754,62267.0,62258.0,0.01755355]
[1728663677431,0.24046361,62265.0,62262.0,0.16061]
[1728663677646,0.40168762,62265.0,62263.0,0.160606]
[1728663677903,0.16122401,62265.0,62263.0,0.01748836]
[1728663678325,0.16122401,62265.0,62261.0,0.18843743]
[1728663678535,0.16122401,62265.0,62264.0,0.01747319]
[1728663678747,0.16122401,62265.0,62263.0,0.160608]
[1728663679000,0.16122401,62265.0,62264.0,0.01747319]
[1728663680072,0.0804,62267.0,62264.0,0.01747319]
[1728663680313,0.001,62265.0,62264.0,0.01747319]
[1728663680524,0.006,62265.0,62264.0,0.36651662]
[1728663680732,0.005,62265.0,62264.0,0.36651662]
[1728663680943,0.005,62275.0,62269.0,0.160592]
[1728663681159,0.24046361,62270.0,62269.0,0.160592]
[1728663681372,0.16122401,62274.0,62270.0,0.1780158]
[1728663681621,0.16122401,62274.0,62269.0,0.0174337]
[1728663681832,0.16122401,62274.0,62268.0,0.50962843]
[1728663681833,0.16122401,62274.0,62270.0,0.0174258]
[1728663682042,0.16122401,62274.0,62269.0,0.160593]
[1728663682250,0.16122401,62274.0,62270.0,0.0174258]
[1728663682669,0.16622401,62274.0,62270.0,0.16059]
[1728663682903,0.16122401,62274.0,62271.0,0.01741791]
[1728663683321,0.16522401,62274.0,62271.0,0.01741791]
[1728663683527,0.16122401,62274.0,62271.0,0.01741791]
[1728663684204,0.16322401,62274.0,62271.0,0.01741791]
[1728663684410,0.16322401,62274.0,62271.0,0.17800391]
[1728663684616,0.16122401,62274.0,62271.0,0.01741791]
[1728663684825,0.16822401,62274.0,62271.0,0.01741791]
[1728663685245,0.16422401,62274.0,62271.0,0.01741791]
[1728663685491,0.17022401,62274.0,62271.0,0.001]
[1728663685697,0.17022401,62274.0,62272.0,0.01741001]
[1728663686112,0.17022401,62274.0,62271.0,0.001]
[1728663686321,0.17022401,62274.0,62273.0,0.01740212]
[1728663686529,0.17022401,62274.0,62272.0,0.01741001]
[1728663686530,0.16722401,62274.0,62272.0,0.01741001]
[1728663686754,0.16286401,62274.0,62267.0,0.321196]
[1728663686967,0.16686401,62274.0,62273.0,0.03331226]
[1728663687182,0.16686401,62274.0,62267.0,0.160596]
[1728663687395,0.16686401,62274.0,62273.0,0.01740212]
[1728663687605,0.16286401,62274.0,62267.0,0.160596]
[1728663688104,0.16986401,62274.0,62272.0,0.001]
[1728663688330,0.16986401,62274.0,62268.0,0.01742237]
[1728663688331,0.16286401,62274.0,62268.0,0.01742237]
[1728663688561,0.17086401,62274.0,62273.0,0.001]
[1728663689002,0.16286401,62274.0,62273.0,0.01738289]
[1728663689220,0.16286401,62274.0,62269.0,0.160593]
[1728663689436,0.16986401,62274.0,62273.0,0.01738289]
[1728663689661,0.16286401,62274.0,62267.0,0.321193]
[1728663689904,0.17086401,62274.0,62273.0,0.01838289]
[1728663690152,0.17586401,62274.0,62273.0,0.001]
[1728663690405,0.17586401,62274.0,62273.0,0.01838289]
[1728663690678,0.17586401,62274.0,62273.0,0.001]
[1728663690942,0.17086401,62274.0,62273.0,0.01838289]
[1728663691176,0.16786401,62274.0,62267.0,0.001]
[1728663691637,0.17086401,62274.0,62268.0,0.01742237]
[1728663691866,0.16786401,62274.0,62268.0,0.01742237]
[1728663692111,0.17586401,62274.0,62273.0,0.001]
[1728663692347,0.16786401,62274.0,62268.0,0.01742237]
[1728663692596,0.17286401,62274.0,62251.0,0.002]
[1728663692877,0.17386401,62274.0,62269.0,0.01741448]
[1728663693100,0.17286401,62274.0,62266.0,0.160599]
[1728663693358,0.16786401,62274.0,62266.0,0.160599]
[1728663693586,0.16786401,62274.0,62267.0,0.01743027]
[1728663693789,0.16786401,62274.0,62267.0,0.17802827]
[1728663694247,0.16986401,62274.0,62267.0,0.17802827]
[1728663694681,0.16786401,62274.0,62267.0,0.01743027]
[1728663694937,0.0798,62273.0,62267.0,0.01743027]
[1728663695181,0.16122401,62272.0,62267.0,0.01743027]
[1728663695428,0.16122401,62272.0,62266.0,0.1606]
[1728663695663,0.16122401,62272.0,62268.0,0.01742237]
[1728663695915,0.16122401,62272.0,62267.0,0.01743027]
[1728663696141,0.16122401,62272.0,62269.0,0.01741448]
[1728663696376,0.16122401,62272.0,62268.0,0.01742237]
[1728663696617,0.16122401,62272.0,62270.0,0.01740658]
[1728663696846,0.16122401,62272.0,62269.0,0.01741448]
[1728663697090,0.16122401,62272.0,62267.0,0.160596]
[1728663697317,0.16122401,62272.0,62270.0,0.01740658]
[1728663697550,0.16322401,62272.0,62271.0,0.01621849]
[1728663697786,0.16222401,62272.0,62271.0,0.03361717]
[1728663698016,0.16522401,62272.0,62271.0,0.03361717]
[1728663698540,0.33862401,62272.0,62271.0,0.03361717]
[1728663698789,0.60090567,62272.0,62271.0,0.03361717]
[1728663699049,0.61690247,62272.0,62271.0,0.01621849]
[1728663699310,0.62290247,62272.0,62271.0,0.01721849]
[1728663699793,0.46231747,62272.0,62271.0,0.01721849]
[1728663700004,0.46231747,62272.0,62271.0,0.02221849]
[1728663700455,0.62290247,62272.0,62271.0,0.02221849]
[1728663700918,0.61690247,62272.0,62271.0,0.02121849]
[1728663701321,0.61690247,62272.0,62271.0,0.02421849]
[1728663702013,0.45631747,62272.0,62271.0,0.02421849]
[1728663702481,0.9053399,62272.0,62271.0,0.02421849]
[1728663702706,0.90539559,62272.0,62271.0,0.02421849]
[1728663703388,0.90539559,62272.0,62271.0,0.01921849]
[1728663703600,0.90539559,62272.0,62271.0,0.01621849]
[1728663703831,0.90839559,62272.0,62271.0,0.01621849]
[1728663704049,0.91339559,62272.0,62271.0,0.01721849]
[1728663705457,0.91039559,62272.0,62271.0,0.01721849]
[1728663705694,0.91339559,62272.0,62271.0,0.01721849]
[1728663706577,0.93639559,62272.0,62271.0,0.01721849]
[1728663707010,0.94139559,62272.0,62271.0,0.01721849]
[1728663707239,0.94139559,62272.0,62258.0,0.00082]
[1728663707240,0.522619,62259.0,62258.0,0.00082]
[1728663707463,0.91132959,62259.0,62258.0,0.00082]
[1728663707683,0.93432959,62259.0,62258.0,0.00082]
[1728663708570,0.93532959,62259.0,62258.0,0.00082]
[1728663708782,0.93432959,62259.0,62258.0,0.00182]
[1728663709238,0.93632959,62259.0,62258.0,0.00082]
[1728663710765,0.93632959,62259.0,62258.0,0.01687411]
[1728663715364,0.72489216,62259.0,62258.0,0.01687411]
[1728663715588,0.72481197,62259.0,62258.0,0.01687411]
[1728663717641,0.56419297,62259.0,62258.0,0.01687411]
[1728663717871,0.26531207,62259.0,62258.0,0.01687411]
[1728663718099,0.16822401,62259.0,62258.0,0.01687411]
[1728663718334,0.16822401,62259.0,62258.0,0.18797783]
[1728663718335,0.002,62259.0,62258.0,0.18797783]
[1728663719007,0.005,62262.0,62258.0,0.18797783]
[1728663719219,0.16222401,62259.0,62258.0,0.02735683]
[1728663720739,0.005,62264.0,62258.0,0.02735683]
[1728663720973,0.005,62266.0,62264.0,0.160606]
[1728663721189,0.005,62266.0,62262.0,0.321218]
[1728663721190,0.005,62264.0,62261.0,0.18843743]
[1728663721441,0.005,62266.0,62265.0,0.01040757]
[1728663721649,0.005,62266.0,62261.0,0.18843743]
[1728663721862,0.005,62266.0,62262.0,0.32122]
[1728663722050,0.16122401,62265.0,62262.0,0.321222]
[1728663722290,0.16122401,62265.0,62264.0,0.18843743]
[1728663722531,0.16122401,62265.0,62263.0,0.160607]
[1728663722532,0.002,62264.0,62263.0,0.160607]
[1728663722782,0.16322401,62264.0,62261.0,0.34904943]
[1728663723006,0.16322401,62264.0,62262.0,0.16061]
[1728663723231,0.16322401,62264.0,62261.0,0.18843743]
[1728663723668,0.16122401,62264.0,62261.0,0.18843743]
[1728663723907,0.16122401,62264.0,62259.0,0.160618]
[1728663724306,0.01499439,62263.0,62260.0,0.160616]
[1728663724518,0.16122401,62264.0,62260.0,0.160616]
[1728663724519,0.16322401,62264.0,62260.0,0.160616]
[1728663724737,0.40168762,62263.0,62258.0,0.01687411]
[1728663724946,0.24222401,62263.0,62258.0,0.01687411]
[1728663725401,0.01499865,62262.0,62259.0,0.01045496]
[1728663725617,0.01499865,62261.0,62259.0,0.01045496]
[1728663725826,0.24322401,62263.0,62258.0,0.01687411]
[1728663726034,0.01499923,62262.0,62260.0,0.00878433]
[1728663726239,0.01500146,62261.0,62259.0,0.00879223]
[1728663726491,0.24322401,62263.0,62258.0,0.01687411]
[1728663726698,0.01500151,62262.0,62258.0,0.01687411]
[1728663726905,0.17622552,62261.0,62258.0,0.01687411]
[1728663727113,0.16122401,62261.0,62258.0,0.01787411]
[1728663727535,0.16322401,62261.0,62258.0,0.01687411]
[1728663727966,0.01500432,62260.0,62258.0,0.01787411]
[1728663728195,0.16322401,62261.0,62258.0,0.01787411]
[1728663728413,0.01500907,62260.0,62258.0,0.01687411]
[1728663728626,0.16122401,62261.0,62258.0,0.17849511]
[1728663728772,0.01500909,62260.0,62258.0,0.01787411]
[1728663728991,0.16122401,62261.0,62258.0,0.17849511]
[1728663729222,0.0150091,62260.0,62258.0,0.17849511]
[1728663729436,0.0150091,62259.0,62258.0,0.01787411]
[1728663729663,0.16122401,62261.0,62258.0,0.01787411]
[1728663729838,0.16122401,62261.0,62258.0,0.01687411]
[1728663729839,0.01501026,62260.0,62258.0,0.01687411]
[1728663730018,0.01501026,62259.0,62258.0,0.01787411]
[1728663730220,0.17623427,62259.0,62258.0,0.01787411]
[1728663730706,0.17723427,62259.0,62258.0,0.01787411]
[1728663731030,0.16222401,62259.0,62258.0,0.01687411]
[1728663731256,0.17723594,62259.0,62258.0,0.01687411]
[1728663731460,0.17723594,62259.0,62258.0,0.01787411]
[1728663732773,0.17723594,62259.0,62258.0,0.01687411]
[1728663733211,0.17723594,62259.0,62258.0,0.01787411]
[1728663734453,0.17723858,62259.0,62258.0,0.01787411]
[1728663734696,0.6147835,62259.0,62258.0,0.01787411]
[1728663735552,0.4541645,62259.0,62258.0,0.01787411]
[1728663736187,0.6147835,62259.0,62258.0,0.01687411]
[1728663736467,0.4581645,62259.0,62258.0,0.01687411]
[1728663737163,0.4651645,62259.0,62258.0,0.01687411]
[1728663737634,0.4531645,62259.0,62258.0,0.01687411]
[1728663737924,0.44816967,62259.0,62258.0,0.01787411]
[1728663738168,0.28636967,62259.0,62258.0,0.01787411]
[1728663738605,0.20526967,62259.0,62258.0,0.01787411]
[1728663738827,0.20026967,62259.0,62258.0,0.01787411]
[1728663739072,0.20026967,62259.0,62258.0,0.02907603]
[1728663739598,0.03904566,62259.0,62258.0,0.37813446]
[1728663739787,0.01501756,62259.0,62258.0,0.37813446]
[1728663740048,0.31756361,62263.0,62259.0,0.160618]
[1728663740303,0.01501697,62262.0,62258.0,0.35031803]
[1728663740567,0.01501697,62261.0,62260.0,0.17179422]
[1728663740786,0.01501697,62261.0,62259.0,0.01119007]
[1728663741028,0.21143274,62263.0,62260.0,0.01117822]
[1728663741287,0.03904965,62262.0,62260.0,0.01117822]
[1728663741520,0.01501865,62261.0,62258.0,0.01687411]
[1728663741748,0.01501865,62260.0,62258.0,0.01687411]
[1728663741967,0.01501865,62259.0,62258.0,0.01687411]
[1728663743452,0.01901865,62259.0,62258.0,0.01687411]
[1728663743665,0.02501865,62259.0,62258.0,0.01687411]
[1728663744347,0.01,62259.0,62258.0,0.01687411]
[1728663744505,0.02502683,62259.0,62258.0,0.01687411]
[1728663745338,0.02502683,62259.0,62258.0,0.17749511]
[1728663745606,0.54030727,62259.0,62258.0,0.01687411]
[1728663745790,0.78910727,62259.0,62258.0,0.01687411]
[1728663746004,0.88910727,62259.0,62258.0,0.01687411]
[1728663746369,0.87910727,62259.0,62258.0,0.01687411]
[1728663746795,0.87910727,62259.0,62258.0,0.01787411]
[1728663750071,0.90210727,62259.0,62258.0,0.01787411]
[1728663751020,1.07047698,62259.0,62258.0,0.01787411]
[1728663751379,1.07047698,62259.0,62258.0,0.01687411]
[1728663751603,0.90910727,62259.0,62258.0,0.01687411]
[1728663752055,0.90710727,62259.0,62258.0,0.01687411]
[1728663752250,0.90910727,62259.0,62258.0,0.01687411]
[1728663752496,0.92210727,62259.0,62258.0,0.01687411]
[1728663752690,0.90910727,62259.0,62258.0,0.01687411]
[1728663752845,0.92010727,62259.0,62258.0,0.01787411]
[1728663753286,0.90910727,62259.0,62258.0,0.01687411]
[1728663753477,0.92110727,62259.0,62258.0,0.01687411]
[1728663753685,0.93410727,62259.0,62258.0,0.01787411]
[1728663754092,0.93610727,62259.0,62258.0,0.01787411]
[1728663754294,0.92108044,62259.0,62258.0,0.01787411]
[1728663754505,0.93410321,62259.0,62258.0,0.01787411]
[1728663757162,0.93610321,62259.0,62258.0,0.01787411]
[1728663757908,0.93774321,62259.0,62258.0,0.01787411]
[1728663764396,0.93574321,62259.0,62258.0,0.01787411]
[1728663765488,0.93774321,62259.0,62258.0,0.01787411]
[1728663765697,0.93574321,62259.0,62258.0,0.01787411]
[1728663766118,1.11300175,62259.0,62258.0,0.01787411]
[1728663766584,0.48314492,62259.0,62258.0,0.01787411]
[1728663766811,0.20988678,62259.0,62258.0,0.01787411]
[1728663767632,0.19688678,62259.0,62258.0,0.01687411]
[1728663767851,0.29688678,62259.0,62258.0,0.01787411]
[1728663768078,0.45750578,62259.0,62258.0,0.01787411]
[1728663768304,0.44350578,62259.0,62258.0,0.01787411]
[1728663768716,0.51551989,62259.0,62258.0,0.01887411]
[1728663768948,0.28288678,62259.0,62258.0,0.01887411]
[1728663769157,0.35490089,62259.0,62258.0,0.01787411]
[1728663769376,0.49151485,62259.0,62258.0,0.01787411]
[1728663769585,0.49151485,62259.0,62258.0,0.02087411]
[1728663769809,0.49151784,62259.0,62258.0,0.02087411]
[1728663770293,0.99907768,62259.0,62258.0,0.02087411]
[1728663770730,0.90305887,62259.0,62258.0,0.02087411]
[1728663771234,1.02307344,62259.0,62258.0,0.02087411]
[1728663771441,1.02310734,62259.0,62258.0,0.02087411]
[1728663772261,1.0231144,62259.0,62258.0,0.02087411]
[1728663772721,1.02311533,62259.0,62258.0,0.02087411]
[1728663773173,1.02313912,62259.0,62258.0,0.02087411]
[1728663773407,0.90307662,62259.0,62258.0,0.02087411]
[1728663774544,0.90308995,62259.0,62258.0,0.02087411]
[1728663774796,1.02316512,62259.0,62258.0,0.02087411]
[1728663774994,0.90308995,62259.0,62258.0,0.02087411]
[1728663775628,0.542442,62250.0,62249.0,0.00082]
[1728663775844,1.09556802,62250.0,62249.0,0.00082]
[1728663776067,1.08445978,62250.0,62249.0,0.00082]
[1728663776723,1.09045978,62250.0,62249.0,0.00182]
[1728663776978,1.18653317,62250.0,62249.0,0.00182]
[1728663777205,0.97918756,62250.0,62249.0,0.00082]
[1728663777417,0.90713059,62250.0,62249.0,0.00082]
[1728663777835,0.91513059,62250.0,62249.0,0.01660055]
[1728663778066,1.18053863,62250.0,62249.0,0.01660055]
[1728663778524,1.18853677,62250.0,62249.0,0.01660055]
[1728663778746,0.97809934,62250.0,62249.0,0.01660055]
[1728663778958,0.77675126,62250.0,62249.0,0.01660055]
[1728663779173,0.75273061,62250.0,62249.0,0.01660055]
[1728663780044,0.70469316,62250.0,62249.0,0.01660055]
[1728663780259,0.77675126,62250.0,62249.0,0.01660055]
[1728663780467,0.70469316,62250.0,62249.0,0.01660055]
[1728663780894,0.77676276,62250.0,62249.0,0.01660055]
[1728663781118,0.70469316,62250.0,62249.0,0.01660055]
[1728663781324,0.77676259,62250.0,62249.0,0.01660055]
[1728663781755,0.265678,62236.0,62235.0,0.00082]
[1728663781978,0.71762916,62236.0,62235.0,0.00082]
[1728663782963,0.72362916,62236.0,62235.0,0.01693711]
[1728663783418,0.71762916,62236.0,62235.0,0.01693711]
[1728663783885,0.54022916,62236.0,62235.0,0.01693711]
[1728663784102,0.54822916,62236.0,62235.0,0.01693711]